{"text_format":"1","workbook":"xlsx","n_sheets":5,"sheets":["①記入シート","申請書(一部を除き、記入シートのデータが自動で反映されます）","許可書","利用者数報告書","貸し出し品リスト"],"not_rendered":{"charts":0,"images":0,"macros":1,"external_links":0,"defined_names":4,"comments":0,"pivot_tables":0},"unopened":[],"bounds":{"document_bytes":16777216,"sheet_cells":100000,"rows_first":2000,"rows_last":500,"rows_between":2000,"halvings":0,"cell_chars":16384,"cell_head_chars":4096},"cells_cut":0,"cells_raw":0,"read":"whole","date_system":"1900"}

{"sheet":"①記入シート","index":0,"n_rows":31,"n_cols":14,"rows_kept":31,"cut":false,"hidden":false,"merged":[[0,3,0,15],[3,3,3,9],[4,3,4,9],[5,3,5,9],[15,1,15,2],[19,0,30,0],[15,3,15,9],[1,0,5,0],[1,1,1,2],[2,1,2,2],[4,1,4,2],[3,1,3,2],[5,1,5,2],[7,0,17,0],[7,1,7,2],[17,1,17,2],[13,1,13,2],[9,1,11,2],[1,3,1,9],[2,3,2,9]]}
["《記入シート》",null,null,"こちらの記入シートの太枠内に入力いただきますと，申請書へデータが自動で入力されます。\nまた,申請書を提出する場合はデータにて提出をお願い致します。"]
["申請者情報","住　所"]
[null,"団体名"]
[null,"責任者"]
[null,"電  話"]
[null,"担当者"]
[]
["申請内容","申請日",null,"令和",null,"年",null,"月",null,"日"]
[]
[null,"使用日",null,null,"月",null,"日",null,"時",null,"分","から"]
[]
[null,null,null,null,"月",null,"日",null,"時",null,"分","まで",null,"日間"]
[]
[null,"使用場所",null,"※「申請書」のシートでチェックをお願い致します。"]
[]
[null,"使用目的"]
[]
[null,"使用予定人数",null,null,"名"]
[]
["使用したい設備",1,null,"※使用したい設備がある場合は,1の欄から順番にドロップダウンリストから選択入力をお願い致します。"]
[null,2,null,null,"《設備一覧》"]
[null,3,null,null,"・長机",null,null,"・マイクスタンド"]
[null,4,null,null,"・イス",null,null,"・延長コード"]
[null,5,null,null,"・演台",null,null,"・プロジェクター"]
[null,6,null,null,"・ホワイトボード",null,null,"・スクリーン"]
[null,7,null,null,"・ハンドマイク",null,null,"・ノートパソコン"]
[null,8,null,null,"・ワイヤレスマイク",null,null,"・レーザーポインタ"]
[null,9]
[null,10]
[null,11]
[null,12]

{"sheet":"申請書(一部を除き、記入シートのデータが自動で反映されます）","index":1,"n_rows":35,"n_cols":18,"rows_kept":35,"cut":false,"hidden":false,"merged":[[21,17,25,22],[21,5,21,6],[23,6,23,7],[27,1,28,4],[27,5,28,11],[20,1,26,4],[10,10,10,12],[31,5,36,11],[29,5,30,5],[29,7,30,7],[36,1,36,4],[29,1,30,4],[31,1,31,4],[32,1,33,4],[34,1,35,4],[11,10,11,12],[18,1,18,4],[0,0,0,6],[1,1,2,11],[6,1,7,11],[19,5,19,11],[15,5,15,11],[14,1,14,11],[16,1,16,4],[4,10,4,11],[16,5,16,7],[18,5,18,7],[16,8,18,8],[16,9,16,11],[18,9,18,11],[8,8,11,8],[8,10,8,12],[9,10,9,12]]}
["別記第1号様式（第3条関係）"]
[true,"函館市南北海道教育センター使用許可申請書"]
[]
[]
[null,null,null,null,null,null,null,null,null,{"$f":"IF(①記入シート!E8=\"\",\"\",IF(①記入シート!E8>=1,\"令和\",\"\"))","v":""},{"$f":"①記入シート!E8&①記入シート!F8&\"　　　　　\"&①記入シート!G8&①記入シート!H8&\"　　　　　\"&①記入シート!I8&①記入シート!J8","v":"年　　　　　月　　　　　日"}]
[]
[null,"函館市教育委員会　様"]
[]
[null,null,null,null,null,null,null,null,"申請者　","住　所",{"$f":"①記入シート!D2","v":0}]
[null,null,null,null,null,null,null,null,null,"団体名",{"$f":"①記入シート!D3","v":0}]
[null,null,null,null,null,null,null,null,null,"責任者",{"$f":"①記入シート!D4","v":0}]
[null,null,null,null,null,null,null,null,null,"電  話",{"$f":"①記入シート!D5","v":0}]
[]
[]
[null,"次のとおり使用したいので申請します。"]
[]
[null,"使用月日",null,null,null,{"$f":"①記入シート!D10&①記入シート!E10&\"　　　　\"&①記入シート!F10&①記入シート!G10&①記入シート!L10","v":"月　　　　日から"},null,null,{"$f":"①記入シート!M12&\"日間\"","v":"日間"},{"$f":"①記入シート!H10&①記入シート!I10&\"　　　　\"&①記入シート!J10&①記入シート!K10&①記入シート!L10&\"　　\"","v":"時　　　　分から　　"}]
[]
[null,"および時間",null,null,null,{"$f":"①記入シート!D12&①記入シート!E12&\"　　　　\"&①記入シート!F12&①記入シート!G12&①記入シート!L12","v":"月　　　　日まで"},null,null,null,{"$f":"①記入シート!H12&①記入シート!I12&\"　　　　\"&①記入シート!J12&①記入シート!K12&①記入シート!L12&\"　　\"","v":"時　　　　分まで　　"}]
[]
[null,"使　用　場　所"]
[null,null,null,null,null,"　視聴覚研修室,",null,"録音室,","第1資料室，","語学室,","第1研修室,","　第2研修室，",null,null,null,null,null,"※希望する使用場所のセルを選択した状態で「○で囲む」のボタンを\n　 クリックすると、当該セルを○で囲むことができます。"]
[]
[null,null,null,null,null,"  音楽室，　","第1理科室，",null,"　第2理科室，","技術室，","大会議室，","　中会議室⑴，"]
[]
[null,null,null,null,null,"　　中会議室⑵"]
[]
[null,"使用目的",null,null,null,{"$f":"①記入シート!D16","v":0}]
[]
[null,"使用予定人員",null,null,null,{"$f":"①記入シート!D18","v":0},null,{"$f":"IF(F30=\"\",\"\",IF(F30>=1,\"名\",\"\"))","v":""}]
[]
[null,null,null,null,null,{"$f":"①記入シート!C20&\"　　\"&①記入シート!C21&\"　　\"&①記入シート!C22&\"　　\"&①記入シート!C23&\"　　\"&①記入シート!C24&\"　　\"&①記入シート!C25&\"　　\"&①記入シート!C26&\"　　\"&①記入シート!C27&\"　　\"&①記入シート!C28&\"　　\"&①記入シート!C29&\"　　\"&①記入シート!C30&\"　　\"&①記入シート!C31","v":"　　　　　　　　　　　　　　　　　　　　　　"}]
[null,"使用に伴う"]
[]
[null,"特別な設備"]

{"sheet":"許可書","index":2,"n_rows":38,"n_cols":12,"rows_kept":38,"cut":false,"hidden":true,"merged":[[37,1,39,4],[37,5,39,11],[21,5,21,6],[23,6,23,7],[31,1,31,4],[31,5,36,11],[32,1,33,4],[34,1,35,4],[36,1,36,4],[29,1,30,4],[29,5,30,5],[29,7,30,7],[20,1,26,4],[13,1,14,11],[21,18,25,23],[27,1,28,4],[27,5,28,11],[16,1,16,4],[16,5,16,7],[16,8,18,8],[16,9,16,11],[18,1,18,4],[18,5,18,7],[18,9,18,11],[0,0,0,6],[1,1,2,11],[4,10,4,11],[6,1,7,11],[8,8,11,12]]}
["別記第2号様式（第4条関係）"]
[true,"函館市南北海道教育センター使用許可書"]
[]
[]
[null,null,null,null,null,null,null,null,null,null,{"$f":"TODAY()","v":"2024-02-13"}]
[]
[null,{"$f":"①記入シート!D3&\"  \"&①記入シート!D4&\"  \"&\"様\"","v":"    様"}]
[]
[null,null,null,null,null,null,null,null,"函館市教育委員会　　印　　　　　"]
[]
[]
[]
[]
[null,{"$f":"\"   \"&'申請書(一部を除き、記入シートのデータが自動で反映されます）'!J5&①記入シート!E8&①記入シート!F8&\"　　\"&①記入シート!G8&①記入シート!H8&\"　　\"&①記入シート!I8&①記入シート!J8&\"付けで申請のあった函館市南北海道教育センターの使用について，次のとおり許可します。\"","v":"   年　　月　　日付けで申請のあった函館市南北海道教育センターの使用について，次のとおり許可します。"}]
[]
[]
[null,"使用月日",null,null,null,{"$f":"①記入シート!D10&①記入シート!E10&\"　　　　\"&①記入シート!F10&①記入シート!G10&①記入シート!L10","v":"月　　　　日から"},null,null,{"$f":"①記入シート!M12&\"日間\"","v":"日間"},{"$f":"①記入シート!H10&①記入シート!I10&\"　　　　\"&①記入シート!J10&①記入シート!K10&①記入シート!L10&\"　　\"","v":"時　　　　分から　　"}]
[]
[null,"および時間",null,null,null,{"$f":"①記入シート!D12&①記入シート!E12&\"　　　　\"&①記入シート!F12&①記入シート!G12&①記入シート!L12","v":"月　　　　日まで"},null,null,null,{"$f":"①記入シート!H12&①記入シート!I12&\"　　　　\"&①記入シート!J12&①記入シート!K12&①記入シート!L12&\"　　\"","v":"時　　　　分まで　　"}]
[]
[null,"使　用　場　所"]
[null,null,null,null,null,"視聴覚研修室,",null,"録音室,","第1資料室，","語学室,","第1研修室,","　第2研修室，"]
[]
[null,null,null,null,null,"音楽室，　"," 第1理科室，",null,"第2理科室，","技術室，","大会議室，","中会議室⑴，"]
[]
[null,null,null,null,null,"　中会議室⑵"]
[]
[null,"使用目的",null,null,null,{"$f":"①記入シート!D16","v":0}]
[]
[null,"使用予定人員",null,null,null,{"$f":"①記入シート!D18","v":0},null,{"$f":"IF(F30=\"\",\"\",IF(F30>=1,\"名\",\"\"))","v":""}]
[]
[null,null,null,null,null,{"$f":"①記入シート!C20&\"　　\"&①記入シート!C21&\"　　\"&①記入シート!C22&\"　　\"&①記入シート!C23&\"　　\"&①記入シート!C24&\"　　\"&①記入シート!C25&\"　　\"&①記入シート!C26&\"　　\"&①記入シート!C27&\"　　\"&①記入シート!C28&\"　　\"&①記入シート!C29&\"　　\"&①記入シート!C30&\"　　\"&①記入シート!C31","v":"　　　　　　　　　　　　　　　　　　　　　　"}]
[null,"使用に伴う"]
[]
[null,"特別な設備"]
[]
[]
[null,"備　　　　　　考",null,null,null,{"$f":"IF(F30>=50,\"駐車場の確保および誘導員の配置をお願いします。\",IF(F30>=35,\"駐車場に誘導員の配置をお願いします。\",\"　　\"))","v":"　　"}]

{"sheet":"利用者数報告書","index":3,"n_rows":12,"n_cols":35,"rows_kept":12,"cut":false,"hidden":true,"merged":[[11,2,11,8],[10,2,10,8],[10,20,10,21],[8,11,8,34],[11,13,11,17],[11,19,11,21],[11,22,11,33],[10,12,10,13],[9,11,9,34],[9,2,9,8],[10,26,10,27],[10,28,10,29],[10,16,10,17],[10,18,10,19],[10,14,10,15],[8,2,8,8],[10,32,10,33],[10,22,10,23],[10,24,10,25],[1,1,2,34],[6,11,6,34],[7,11,7,34],[6,2,6,8],[7,2,7,8]]}
[]
[null,"函館市南北海道教育センター利用者数報告書"]
[]
[]
[null,"下記の該当事項に記入のうえ，事務室へ提出願います。"]
[]
[null,null,"団体名",null,null,null,null,null,null,null,null,{"$f":"①記入シート!D3","v":0},"函館市教育委員会学校教育部","函館市教育委員会学校教育部","函館市教育委員会学校教育部","函館市教育委員会学校教育部","函館市教育委員会学校教育部","函館市教育委員会学校教育部","函館市教育委員会学校教育部","函館市教育委員会学校教育部","函館市教育委員会学校教育部","函館市教育委員会学校教育部","函館市教育委員会学校教育部","函館市教育委員会学校教育部","函館市教育委員会学校教育部","函館市教育委員会学校教育部","函館市教育委員会学校教育部","函館市教育委員会学校教育部","函館市教育委員会学校教育部","函館市教育委員会学校教育部","函館市教育委員会学校教育部","函館市教育委員会学校教育部","函館市教育委員会学校教育部","函館市教育委員会学校教育部","函館市教育委員会学校教育部"]
[null,null,"代表者名",null,null,null,null,null,null,null,null,{"$f":"①記入シート!D4","v":0},null,"学校教育課長　小濱　誠",null,"学校教育課長　小濱　誠",null,"学校教育課長　小濱　誠",null,"学校教育課長　小濱　誠",null,"学校教育課長　小濱　誠",null,"学校教育課長　小濱　誠",null,"学校教育課長　小濱　誠",null,"学校教育課長　小濱　誠",null,"学校教育課長　小濱　誠",null,"学校教育課長　小濱　誠",null,"学校教育課長　小濱　誠"]
[null,null,"担当者名",null,null,null,null,null,null,null,null,{"$f":"①記入シート!D6","v":0},null,"学校教育課長　小濱　誠",null,"学校教育課長　小濱　誠",null,"学校教育課長　小濱　誠",null,"学校教育課長　小濱　誠",null,"学校教育課長　小濱　誠",null,"学校教育課長　小濱　誠",null,"学校教育課長　小濱　誠",null,"学校教育課長　小濱　誠",null,"学校教育課長　小濱　誠",null,"学校教育課長　小濱　誠",null,"学校教育課長　小濱　誠"]
[null,null,"使用目的",null,null,null,null,null,null,null,null,{"$f":"①記入シート!D16","v":0},"学校司書研修会の開催","学校司書研修会の開催","学校司書研修会の開催","学校司書研修会の開催","学校司書研修会の開催","学校司書研修会の開催","学校司書研修会の開催","学校司書研修会の開催","学校司書研修会の開催","学校司書研修会の開催","学校司書研修会の開催","学校司書研修会の開催","学校司書研修会の開催","学校司書研修会の開催","学校司書研修会の開催","学校司書研修会の開催","学校司書研修会の開催","学校司書研修会の開催","学校司書研修会の開催","学校司書研修会の開催","学校司書研修会の開催","学校司書研修会の開催","学校司書研修会の開催"]
[null,null,"利用日",null,null,null,null,null,null,null,null,null,{"$f":"①記入シート!D10","v":0},null,"月",null,{"$f":"①記入シート!F10","v":0},null,"日",null,"～",null,{"$f":"①記入シート!D12","v":0},null,"月",null,{"$f":"①記入シート!F12","v":0},null,"日",null,"（",{"$f":"①記入シート!M12","v":0},"日間",null,"）"]
[null,null,"利用者数",null,null,null,null,null,null,null,null,null,null,null,null,null,null,null,null,"人",null,null,"（延べ人数）"]

{"sheet":"貸し出し品リスト","index":4,"n_rows":14,"n_cols":15,"rows_kept":14,"cut":false,"hidden":true,"merged":[]}
[]
[]
[null,"長机"]
[null,"イス"]
[null,"演台"]
[null,"ホワイトボード"]
[null,"ハンドマイク"]
[null,"ワイヤレスマイク"]
[null,"マイクスタンド",null,null,null,null,null,null,null,null,null,null,null,null,")"]
[null,"延長コード"]
[null,"プロジェクター"]
[null,"スクリーン"]
[null,"ノートパソコン"]
[null,"レーザーポインタ"]